Cogmind - Beta 17 @@@ ROGUE MODE // 2026.08.04 @ 15:33:21 Player: Afro Result: Destroyed by PO-0O1(R) with Subdweller Shrapnel Launcher Performance ------------- Evolutions (0) 0 Regions Visited (2) 400 Robots Destroyed (25) 125 Value Destroyed (575) 575 Prototype IDs (0) 0 Alien Tech Used (0) 0 Bonus (0) 0 TOTAL SCORE: 1100 Bonus ------- None Cogmind --------- Core Integrity 0/250 Matter 282/300 Energy 198/200 System Corruption 0% Temperature Cool (0) Movement Rolling (110) Location -10/Subcaves Parts ------- > --- POWER (1) -------- Subdweller Power Source > --- PROPULSION (2) --- Subdweller Monowheel Subdweller Monowheel > --- UTILITY (2) ------ Large Storage Unit > --- WEAPON (2) ------- Subdweller Laser > --- INVENTORY (15) --- Ion Engine Subdweller Power Source Disposable Heat Sink Subdweller Optics Signal Interpreter ECM Suite Scrap Shield Beam Rifle Beam Rifle Beam Rifle Grenade Launcher Heavy Hammer Scrap Shield Fragment (48) Scrap Shield Fragment (45) Peak State ------------ > --- POWER ------------ Subdweller Power Source > --- PROPULSION ------- Subdweller Monowheel Subdweller Monowheel > --- UTILITY ---------- Large Storage Unit Medium Armor Plating > --- WEAPON ----------- Subdweller Laser Subdweller Machine Gun > --- INVENTORY -------- Ion Engine Light Ion Engine Light Treads Disposable Heat Sink Subdweller Optics Signal Interpreter ECM Suite Scrap Shield Beam Rifle Beam Rifle Beam Rifle Grenade Launcher Heavy Hammer Scrap Shield Fragment [Rating: 15] Favorites ----------- Power Light Nuclear Core Engine Ion Engine Power Core Light Nuclear Core Propulsion Light Treads Treads Light Treads Leg Aluminum Leg Wheel Subdweller Monowheel Utility ECM Suite Device ECM Suite Storage Large Storage Unit Protection Medium Armor Plating Weapon Light Assault Rifle Energy Gun Subdweller Laser Ballistic Gun Light Assault Rifle Ballistic Cannon Light Cannon Launcher Grenade Launcher Impact Weapon Heavy Hammer Build | -11 -10 -10 ------- Run | Yrd Mat Sub Slots Evolved . | . . . Power . | . . . Propulsion . | . . . Utility . | . . . Weapon . | . . . Parts Attached 35 | 6 13 16 Power 8 | 1 4 3 Engine 6 | 1 2 3 Core 2 | . 2 . Reactor . | . . . Propulsion 11 | 1 4 6 Treads 5 | . 4 1 Leg 1 | 1 . . Wheel 5 | . . 5 Hover . | . . . Flight . | . . . Utility 7 | 2 3 2 Device 3 | 1 2 . Storage 2 | 1 1 . Processor . | . . . Hackware . | . . . Protection 2 | . . 2 Artifact . | . . . Weapon 9 | 2 2 5 Energy Gun 2 | . . 2 Energy Cannon . | . . . Ballistic Gun 4 | 2 . 2 Ballistic Cannon 1 | . 1 . Launcher 1 | . . 1 Special Weapon . | . . . Impact Weapon 1 | . 1 . Slashing Weapon . | . . . Piercing Weapon . | . . . Special Melee Weapon . | . . . Unidentified Prototypes . | . . . Parts Lost 5 | . . 5 Power . | . . . Propulsion 1 | . . 1 Utility 2 | . . 2 Weapon 2 | . . 2 Highest Loss Streak 3 | . . 3 To Critical Strikes . | . . . Average Backups 10 | 6 9 12 Power 2 | 2 2 2 Propulsion 1 | 2 2 . Utility 3 | 1 2 4 Weapon 3 | . 2 5 Tool/Special . | . . . Unused Backups 20 | 1 8 11 Power 5 | . 3 2 Propulsion 1 | . 1 . Utility 9 | . 3 6 Weapon 4 | 1 . 3 Tool/Special 1 | . 1 . Average Slot Usage (%) 99 | . 99 99 Engine 7 | . 7 9 Core 6 | . 6 4 Treads 22 | . 27 9 Wheel 4 | . . 18 Device 10 | . 14 . Storage 14 | . 14 14 Protection 3 | . . 13 Energy Gun 2 | . . 9 Ballistic Gun 19 | . 22 10 Ballistic Cannon 5 | . 5 3 Peak Build Rating 15 | 9 12 15 Average Rating 10 | 5 8 14 On Entrance 6 | . 9 11 Avg Prop Armor Cover (%) 3 | . . 3 Naked Turns . | . . . Heaviest Build 40 | 12 31 40 Greatest Support 40 | 10 40 40 Greatest Overweight (x) 5 | 1 5 1 Average Overweight (x) . | . . . Largest Inventory Capacity 15 | 8 15 15 Average Capacity 11 | 7 10 15 Most Carried 15 | 8 15 15 Average Carried 10 | 6 9 14 Final Capacity 15 | 8 15 15 Final Carried 15 | 8 15 15 Class Distribution -------------------- 82% | Mutant 17% | Scavenger-Mutant Dominant Class ---------------- Mutant | -10/Materials Scavenger-Mutant | -10/Subcaves Resources | -11 -10 -10 ----------- Run | Yrd Mat Sub Matter Collected 1027 | 256 463 308 Remotely . | . . . Salvage Created 855 | 129 612 114 Parts 55 | 11 36 8 Haulers Intercepted 2 | . 2 . Recyclers Shooed 1 | 1 . . Parts Field Recycled . | . . . Retrieved Matter . | . . . Parts Self-Destructed 18 | . . 18 Prevented . | . . . Parts Restored . | . . . Kills | -11 -10 -10 ------- Run | Yrd Mat Sub Combat Hostiles Destroyed 15 | . 10 5 Guns 9 | . 9 . Cannons 1 | . 1 . AOE 5 | . . 5 Classes Destroyed 9 | 2 5 2 Worker 1 | . 1 . Tunneler 3 | 3 . . Hauler 2 | . 2 . Recycler 2 | 1 1 . Watcher 2 | . 2 . Swarmer 3 | . 1 2 Grunt 9 | . 9 . Artisan 1 | . . 1 Subdweller 3 | . . 3 Best Kill Streak 3 | 2 2 3 Combat Bots Only 3 | . 2 3 Max Kills in Single Turn 3 | 1 1 3 Gunslinging . | . . . Exploded 3 | . . 3 Melee . | . . . Uniques/NPCs Destroyed . | . . . Combat | -11 -10 -10 -------- Run | Yrd Mat Sub Hostile Shots Fired 119 | . 45 74 Missed 35 | . 14 21 Hits 84 | . 31 53 Projectile 84 | . 31 53 AOE 3 | . . 3 Critical Strikes 1 | . 1 . Damage Taken 1298 | . 363 935 Core 279 | . 55 224 Absorbed by Shields . | . . . Core Remaining (%) 100 | 100 . . Volleys Fired 78 | 12 47 19 Largest 2 | 2 2 2 Hottest 90 | 40 50 90 Shots Fired 152 | 24 94 34 Gun 133 | 24 84 25 Cannon 17 | . 10 7 Launcher 2 | . . 2 Special . | . . . Kinetic 140 | 24 94 22 Thermal 10 | . . 10 Explosive 2 | . . 2 Electromagnetic . | . . . Robot Hit Streak 13 | 5 9 13 Robot Miss Streak 4 | 2 4 4 Penetration Max . | . . . Secondary Targets . | . . . Shots Hit Robots 97 | 15 60 22 Core Hits 50 | 6 32 12 Critical Kills . | . . . Critical Parts Destroyed 1 | . 1 . Critical Strikes 1 | . 1 . Destroy 1 | . 1 . Melee Attacks 8 | . 1 7 Impact 8 | . 1 7 Slashing . | . . . Piercing . | . . . Sneak Attacks 1 | . . 1 Combat Hostiles . | . . . Follow-up Attacks . | . . . Damage Inflicted 1473 | 161 699 613 Guns 944 | 161 559 224 Cannons 124 | . 124 . Explosions 274 | . . 274 Melee 115 | . . 115 Ramming 16 | . 16 . Kinetic 927 | 161 683 83 Thermal 141 | . . 141 Explosive 274 | . . 274 Electromagnetic . | . . . Impact 115 | . . 115 Slashing . | . . . Piercing . | . . . Highest Corruption . | . . . Average Corruption . | . . . Corruption Purged . | . . . Corruption Blocked . | . . . Overload Shots . | . . . Overflow Damage 85 | . . 85 Projectiles . | . . . Explosions . | . . . Melee 85 | . . 85 Knockbacks 2 | . 1 1 Impact 1 | . . 1 Kinetic 1 | . 1 . Secondary . | . . . Self-Inflicted Damage . | . . . Shots . | . . . Rammed 2 | . 2 . Targets Rammed 2 | . 2 . Kicked . | . . . Crushed . | . . . Highest Temperature 28 | . 28 22 Average Temperature 10 | . 10 10 Received Heat Transfer 384 | . 216 168 Siege Activations . | . . . Martial Activations . | . . . Shielding Activations . | . . . Robots Disrupted . | . . . Combat Hostiles . | . . . Robots Corrupted 1 | . . 1 Combat Hostiles . | . . . Parts Fried 1 | . . 1 Impact Corruptions 3 | . . 3 Robots Melted . | . . . Combat Hostiles . | . . . Parts Melted . | . . . Heat Transferred 187 | . . 187 Parts Sabotaged . | . . . Parts Stolen . | . . . Parts Stripped . | . . . Power Chain Reactions . | . . . Alert | -11 -10 -10 ------- Run | Yrd Mat Sub Maximum Alert Level . | . . . Low Security (%) 100 | 100 100 . Level 1 . | . . . Level 2 . | . . . Level 3 . | . . . Level 4 . | . . . Level 5 . | . . . High Security . | . . . Max Security . | . . . Peak Influence 55 | 5 55 . Initial . | . . . Average 8 | . 9 . Influence Increases 412 | 20 322 70 Destroy 0b10 Robot/C 240 | . 200 40 Destroy 0b10 Robot/NC 50 | 20 30 . Destroy Leader 48 | . 48 . Successful Hack 28 | . 28 . Disable Machine 15 | . 15 . Destroy Structure 1 | . 1 . Lose Combat Pursuer 30 | . . 30 Influence Decreases 412 | 20 322 70 Time Decay 392 | 20 322 50 Lost Part 20 | . . 20 Squads Dispatched 1 | . 1 . Investigation . | . . . Extermination . | . . . Reinforcement 1 | . 1 . Assault . | . . . Garrison . | . . . Intercept . | . . . Searches Triggered . | . . . Construction Impeded . | . . . Haulers Reinforced . | . . . Active Scanning Responses . | . . . Cargo Convoy Interrupts . | . . . Stealth | -11 -10 -10 --------- Run | Yrd Mat Sub Distress Signals 2 | . 2 . Communications Jammed . | . . . Distress Signals . | . . . Times Spotted 52 | . 33 19 Peak Tracking Total 6 | . 5 6 Tactical Retreats 12 | . 11 1 ECM-based Alert Blocks 17 | . 17 . Traps | -11 -10 -10 ------- Run | Yrd Mat Sub Traps Triggered 6 | . 6 . Indirectly . | . . . Trap Hack Attempts . | . . . Triggered . | . . . Disarmed . | . . . Reprogrammed . | . . . Reused . | . . . Traps Extracted . | . . . Installed . | . . . Triggered . | . . . Machines | -11 -10 -10 ---------- Run | Yrd Mat Sub Machines Disabled 1 | . 1 . Max in Single Turn 1 | . 1 . Machines Repaired . | . . . Machines Dismantled . | . . . Machines Sabotaged . | . . . Overloaded Fab Kills . | . . . Hacking | -11 -10 -10 --------- Run | Yrd Mat Sub Machines Accessed 8 | . 8 . Terminals 7 | . 7 . Fabricators . | . . . Repair Stations . | . . . Recycling Units 1 | . 1 . Scanalyzers . | . . . Garrison Access . | . . . Total Hacks 27 | . 27 . Successful 18 | . 18 . Failed 8 | . 8 . Catastrophic . | . . . Database Lockouts 1 | . 1 . Manual 28 | . 28 . Terminals 26 | . 26 . Fabricators . | . . . Repair Stations . | . . . Recycling Units 1 | . 1 . Scanalyzers . | . . . Garrison Access . | . . . Terminal Hacks 1 | . 1 . Robot Analysis 1 | . 1 . Fabricator Hacks . | . . . Repair Station Hacks . | . . . Recycling Unit Hacks . | . . . Scanalyzer . | . . . Garrison Access Hacks . | . . . Unauthorized Hacks 16 | . 16 . Terminals 16 | . 16 . Track 5 | . 5 . Assimilate 4 | . 4 . Botnet 7 | . 7 . Fabricators . | . . . Repair Stations . | . . . Recycling Units . | . . . Scanalyzers . | . . . Garrison Access . | . . . Data Cores Recovered . | . . . Used . | . . . Hacking Detections 6 | . 6 . Full Trace Events 1 | . 1 . Feedback Events . | . . . Feedback Blocked . | . . . Robot Schematics Acquired . | . . . Robots Built . | . . . Authchips . | . . . Time . | . . . Total Robot Build Rating . | . . . Part Schematics Acquired . | . . . Parts Built . | . . . Authchips . | . . . Time . | . . . Total Part Build Rating . | . . . Part Studies Acquired . | . . . Parts Repaired . | . . . Time . | . . . Parts Recycled . | . . . Recycled Matter . | . . . Retrieved Matter . | . . . Retrieved Components . | . . . Parts Scanalyzed . | . . . Part Schematics Acquired . | . . . Parts Damaged . | . . . Bothacking | -11 -10 -10 ------------ Run | Yrd Mat Sub Used RIF Installer . | . . . Robots Hacked . | . . . Non-combat . | . . . Combat . | . . . Robot Hacks Applied . | . . . Relay Couplers Released . | . . . Fabnet Peak Effective % . | . . . Robots Rewired . | . . . Allies Hacked . | . . . Hacks Repelled . | . . . Allies | -11 -10 -10 -------- Run | Yrd Mat Sub Total Allies . | . . . Largest Group . | . . . Highest-Rated Group . | . . . Highest-Rated Ally . | . . . Total Orders . | . . . Ally Attacks . | . . . Total Damage . | . . . Kills . | . . . Allies Corrupted . | . . . Allies Melted . | . . . Intel | -11 -10 -10 ------- Run | Yrd Mat Sub Active Infowar (turns) 2360 | 57 2299 4 Terrain 71 | 57 14 . Seismic 273 | . 273 . ECM 2016 | . 2012 4 Robot Analysis Total 1 | . 1 . Derelict Logs Recovered 1 | . . 1 Drone Launches . | . . . Drone Recoveries . | . . . Exploration | -11 -10 -10 ------------- Run | Yrd Mat Sub Turns Passed 3266 | 184 2299 783 Spaces Moved 1760 | 82 1151 527 Core 19 | 13 6 . Treads 1255 | . 1139 116 Legs 75 | 69 6 . Wheels 411 | . . 411 Hover . | . . . Flight . | . . . Fastest Speed 50 | 50 160 110 Average Speed 149 | 160 160 123 Slowest Speed 300 | 190 300 240 Overloaded Moves . | . . . Propulsion Burnouts . | . . . Robots Hopped . | . . . Potential Cave-ins . | . . . Cave-ins Triggered . | . . . Exploration Rate (%) 47 | 6 99 36 Regions Visited 2 Branch Regions 1 Pre-discovered Areas . | . . . Known Exits Taken . | . . . Unknown Exits Taken 2 | 1 1 . Scrap Searched . | . . . Spaces Dug 2 | . . 2 Terrain Destroyed 13 | . . 13 Melee 2 | . . 2 Projectile . | . . . AOE 11 | . . 11 Terrain Rammed . | . . . Walls Destroyed . | . . . Machines Disabled . | . . . Actions | -11 -10 -10 --------- Run | Yrd Mat Sub Total 2247 | 111 1516 620 Wait 270 | . 251 19 Move 1758 | 81 1150 527 Hop . | . . . Pick Up 39 | 11 18 10 Fast Attach 18 | 4 11 3 Attach 8 | 2 2 4 Detach 1 | . 1 . Swap 29 | . 15 14 Drop 36 | 1 18 17 Fire 78 | 12 47 19 Melee 8 | . 1 7 Ram . | . . . Kick . | . . . Crush 2 | . 2 . Escape Stasis . | . . . Rewire . | . . . Trap . | . . . Miscellaneous . | . . . Route ------- -11/Scrapyard -10/Materials (discovered 5 exits: [*Mat x3] / [*Min] / [*Sub]) -10/Subcaves History --------- Turn | Location | Event 9 | -11/Scrapyard | Discovered new exit (range 16) 185 | -11/Scrapyard | Entered Materials 324 | -10/Materials | Build established: Mutant 558 | -10/Materials | Discovered new exit (range 6) 643 | -10/Materials | Central database locked down 862 | -10/Materials | Discovered new exit (range 3) 1477 | -10/Materials | Discovered new exit (range 5) 1576 | -10/Materials | Discovered new exit (range 14) 2334 | -10/Materials | Discovered new exit (range 9) 2484 | -10/Materials | Entered Subcaves 2485 | -10/Subcaves | Approached by a straggling Scientist 2676 | -10/Subcaves | Ambushed by swarm of Subdwellers 2735 | -10/Subcaves | Lost 3 parts (1n1u1w) 2787 | -10/Subcaves | A swath of the cavern ceiling suddenly collapsed 3012 | -10/Subcaves | Build established: Scavenger-Mutant 3116 | -10/Subcaves | Shifting Twisted Machinery released Battle Rifle 3212 | -10/Subcaves | Core integrity fell below 50% 3253 | -10/Subcaves | Learned Materials machine intel 3264 | -10/Subcaves | Core integrity fell below 20% 3267 | -10/Subcaves | Destroyed by PO-0O1(R) with Subdweller Shrapnel Launcher Last Messages --------------- 03110_ Acquired 45 matter. Battle Rifle falls loose from the Twisted Machinery. 03118_ Acquired 10 matter. 03125_ Dropped Sub. Machine Gun. 03126_ Acquired 8 matter. 03204_ Acquired 12 matter. 03219_ VX-ZGM(R) destroyed. 03223_ NH-Q1J(R) destroyed. 03228_ Dropped Sub. Monowheel. 03230_ Acquired 49 matter. 03232_ Dropped Sub. Power Source. 03232_ Acquired Sub. Power Source. 03234_ Dropped Sub. Optics. 03234_ Acquired Sub. Optics. 03253_ Acquired derelict log, extracted data. Data stored: Materials machine intel. 03262_ J4-GD9(g) destroyed. 03263_ Med. Armor Plating destroyed. 03267_ Battle Rifle destroyed. Map ----- +----------------------------------------------------+ | | | | | | | | | | | ?????????????????????????????????????????????????? | | ?????????????????????????????????????????????????? | | ?????????????????????????????????????????????????? | | ?????????????????????????????????????????????????? | | ?????????????????????????????????????????????????? | | ?????????????????????????????????????????????????? | | ?????????????????????????????????????????????????? | | ?????????????????????????????????????????????????? | | ?????????????????????????????????????????????????? | | ?????????????????????????????????????????????????? | | ?????????????????????????????????????????????????? | | ?????????????????????????????????????????????????? | | ?????????????????????????????????????????????????? | | ?????????????????????????????????????????????????? | | ???????????????????###############???????????????? | | ?????????????????### # ##??????????????? | | ????????????????##"" ###????????????? | | ???????????????## " ##???????????? | | ??????????????## # ##??????????? | | ??????????###?# % R #??????????? | | ?????????"""## ###; @ R #??????????? | | ?????????""" ###????# #### #?????????? | | ?????????""" #?????# ;#???? #??????????? | | ?####????"" %#?????# g ;##????? #??????????? | | ## ###??? %#?????#### ####??? ??????????? | | #???# #????????## #??????????????? | | ##??#""#??????????# #??????????????? | | #### %#??????????## ##??????????????? | | #####???????## ####???????????????? | | ## # # ####?????# *##???####??????????? | | ## ### # ###???#! ! ##### #??????????? | | % ###% #####% [ ## #??????????? | | ##?## % =& ## #??????????? | | # #?## ### ######## ##??????????? | | ### ### % ### ####??# ##??????????? | | # ### ## #### ##?????????? | | ### ## ## #?????????? | | %### ## ## ##### % ####?????????? | | #?### ## ### ##???##### % ##????????????? | | ### ### ##?#####????????######?????????????? | | ## ## ##?????????????????????????????????? | | % ###?#####?????????????????????????? | | " " * ## ##????????????????????????? | | " ##""### #????????????????????????? | | ""####"#?## #????????????????????????? | +----------------------------------------------------+ Best States ------------- Heat Dissipation 25 Energy Generation 15 Energy Capacity 250 Matter Stores 300 Matter Capacity 300 Sight Range 16 Terrain Scan Range 16 Terrain Scan Density 10 ECM Strength 1 Armor Coverage 225 Evasion (%) 50 Recoil Reduction 2 Item Schematics ----------------- None Robot Schematics ------------------ None Fabricated ------------ Nothing Repaired ---------- Nothing Studied --------- None Alien Tech Used ----------------- None Achievements -------------- None Challenges ------------ None Game ------ Seed MeleeImpulseTransmogrifier Manual? 0 Play Time 00:31:54 Cumulative 81.5 hours Start 2026.08.04 @ 15:03:40 End 2026.08.04 @ 15:33:21 Sessions 1 Manual Loads 0 Difficulty Rogue Special Mode None Game No. 65 Rogue 65 Adventurer 0 Explorer 0 Win Type - Total 1 Types 1/0/0/0/0/0/0/0/0/0 Lore% 23 Gallery% 33 Achievement% 27 Wizard Run 0 Options --------- Layout 1 ASCII 0 Keyboard 0 Movement Mouse Keybinds 0 Fullscreen 2 Font 24/Smallcaps Map View 50x35 Zoom Use 0% Tactical HUD 1 Map Filters NONE Filters NONE Steam 1 RUN: 5d916f00-db7a-4b0c-8c66-4af9dd7ecace